Cogmind - Beta 10.2 @@@ ROGUE MODE // 2021.09.12 @ 17:09:47 Player: Jezoensis Result: Destroyed by D-53 Grenadier with Mini Grenade Launcher Performance ------------- Evolutions (2) 1000 Regions Visited (8) 1600 Robots Destroyed (81) 405 Value Destroyed (2044) 2044 Prototype IDs (25) 500 Alien Tech Used (0) 0 Bonus (566) 566 TOTAL SCORE: 6115 Bonus ------- High Alert Combat Kills 66 Entered Garrisons 200 Aligned with FarCom 300 Cogmind --------- Core Integrity 0/550 Matter 230/300 Energy 154/160 System Corruption 0% Temperature Cool (8) Movement Treading (160) Location -8/Garrison Parts ------- > --- POWER (1) -------- Light Nuclear Core > --- PROPULSION (3) --- Light Treads Light Treads Light Treads > --- UTILITY (4) ------ Large Storage Unit Large Storage Unit Terrain Scan Processor > --- WEAPON (3) ------- Heavy EM Pulse Gun Autogun Heavy Machine Gun > --- INVENTORY (16) --- Reinforced Deuterium Engine Light Treads Light Treads Light Treads Improved Medium Treads Improved Medium Treads High-capacity Storage Unit High-capacity Storage Unit Lightpack 2.0 Advanced Terrain Scanner Long-range Tractor Beam Peak State ------------ > --- POWER ------------ Improved Ion Engine > --- PROPULSION ------- Light Treads Light Treads Light Treads > --- UTILITY ---------- Large Storage Unit Large Storage Unit Terrain Scan Processor Improved Weapon Shielding > --- WEAPON ----------- Heavy EM Pulse Gun Autogun Shock Bomb Launcher > --- INVENTORY -------- Light Treads Light Treads Light Treads High-capacity Storage Unit High-capacity Storage Unit Lightpack 2.0 Advanced Terrain Scanner Improved Light Armor Plating Long-range Tractor Beam Heavy EM Pulse Gun Heavy EM Pulse Gun Autogun Autogun Autogun [Rating: 23] Favorites ----------- Power Improved Ion Engine Engine Improved Ion Engine Power Core Light Nuclear Core Propulsion Light Treads Treads Light Treads Utility Large Storage Unit Device Improved Terrain Scanner Storage Large Storage Unit Processor Terrain Scan Processor Hackware Hacking Suite Protection Improved Light Armor Plating Weapon Heavy Assault Rifle Energy Gun EM Pulse Gun Ballistic Gun Heavy Assault Rifle Launcher Mini Grenade Launcher Special Weapon Mining Laser Build | -11 -10 -10 -9 -9 -9 -8 -8 -8 ------- Run | Scr Mat Min Mat Min Exi Min Mat Gar Slots Evolved 4 | . . . 2 . . . 2 . Power . | . . . . . . . . . Propulsion 1 | . . . 1 . . . . . Utility 2 | . . . 1 . . . 1 . Weapon 1 | . . . . . . . 1 . Parts Attached 103 | 7 9 . 35 7 . 2 29 14 Power 7 | 1 . . 2 . . . 3 1 Engine 6 | 1 . . 2 . . . 3 . Core 1 | . . . . . . . . 1 Reactor . | . . . . . . . . . Propulsion 20 | 2 . . 5 1 . 1 8 3 Treads 20 | 2 . . 5 1 . 1 8 3 Leg . | . . . . . . . . . Wheel . | . . . . . . . . . Hover . | . . . . . . . . . Flight . | . . . . . . . . . Utility 34 | 2 6 . 11 2 . . 10 3 Device 14 | 1 2 . 4 1 . . 5 1 Storage 4 | 1 2 . 1 . . . . . Processor 1 | . . . . . . . 1 . Hackware 2 | . . . . . . . 2 . Protection 13 | . 2 . 6 1 . . 2 2 Artifact . | . . . . . . . . . Weapon 42 | 2 3 . 17 4 . 1 8 7 Energy Gun 7 | 1 . . 1 . . . 3 2 Energy Cannon . | . . . . . . . . . Ballistic Gun 24 | 1 2 . 9 2 . 1 5 4 Ballistic Cannon . | . . . . . . . . . Launcher 8 | . . . 5 2 . . . 1 Special Weapon 3 | . 1 . 2 . . . . . Impact Weapon . | . . . . . . . . . Slashing Weapon . | . . . . . . . . . Piercing Weapon . | . . . . . . . . . Special Melee Weapon . | . . . . . . . . . Unidentified Prototypes . | . . . . . . . . . Parts Lost 16 | . . . . 2 . 2 . 12 Power 1 | . . . . . . . . 1 Propulsion 5 | . . . . 1 . 1 . 3 Utility 3 | . . . . 1 . . . 2 Weapon 7 | . . . . . . 1 . 6 Highest Loss Streak 11 | . . . . 1 . 2 . 11 Average Slot Usage (%) 99 | . 100 100 99 99 100 100 100 89 Engine 10 | . 14 14 11 11 11 11 9 2 Treads 29 | . 28 28 32 33 33 33 27 25 Device 8 | . 13 14 6 10 11 11 3 3 Storage 18 | . 14 14 18 22 22 22 18 18 Processor 2 | . . . . . . . 9 9 Hackware 1 | . . . . . . . 5 . Protection 1 | . . . 6 . . . . 2 Energy Gun 5 | . 14 14 1 . . . 7 6 Ballistic Gun 18 | . 13 14 18 21 22 22 19 15 Naked Turns . | . . . . . . . . . Heaviest Build 53 | 14 42 27 48 46 46 46 50 53 Greatest Support 60 | 40 40 40 60 60 60 60 60 60 Greatest Overweight (x) 2 | . 1 . . . . . . 2 Average Overweight (x) . | . . . . . . . . . Largest Inventory Capacity 16 | 6 12 10 16 16 16 16 16 16 Average Capacity 14 | 5 9 10 14 16 16 16 16 16 Most Carried 16 | 4 10 10 14 14 15 16 16 15 Average Carried 12 | 2 9 9 10 13 13 14 15 11 Final Capacity 16 | 6 10 10 16 16 16 16 16 16 Final Carried 15 | 4 10 10 14 12 15 14 15 12 Class Distribution -------------------- 33% | Scavenger-Skirmisher 32% | Scavenger-Mutant 30% | Mutant 4% | Skirmisher Dominant Class ---------------- Mutant | -10/Materials Mutant | -10/Mines Scavenger-Mutant | -9/Materials Scavenger-Mutant | -9/Mines Scavenger-Mutant | -9/Exiles Scavenger-Skirmisher | -8/Mines Scavenger-Skirmisher | -8/Materials Skirmisher | -8/Garrison Resources | -11 -10 -10 -9 -9 -9 -8 -8 -8 ----------- Run | Scr Mat Min Mat Min Exi Min Mat Gar Matter Collected 2408 | 279 126 49 496 201 . 53 910 294 Remotely . | . . . . . . . . . Salvage Created 3061 | 162 339 51 771 190 . 53 1185 310 Parts 194 | 11 19 . 62 12 . 3 68 19 Haulers Intercepted 5 | . 2 . . . . . 3 . Recyclers Shooed 3 | . . . 1 . . . 2 . Parts Field Recycled . | . . . . . . . . . Retrieved Matter . | . . . . . . . . . Parts Self-Destructed . | . . . . . . . . . Prevented . | . . . . . . . . . Kills | -11 -10 -10 -9 -9 -9 -8 -8 -8 ------- Run | Scr Mat Min Mat Min Exi Min Mat Gar Combat Hostiles Destroyed 61 | . 4 3 22 7 . 1 16 8 Guns 43 | . 4 3 10 1 . 1 16 8 AOE 18 | . . . 12 6 . . . . Classes Destroyed 16 | 2 4 1 3 . . 1 3 2 Worker 2 | . . . . . . . 2 . Tunneler 3 | 3 . . . . . . . . Hauler 5 | . 2 . . . . . 3 . Recycler 4 | 1 . . 1 1 . . 1 . Mechanic 1 | . . . . . . . 1 . Operator 1 | . 1 . . . . . . . Watcher 7 | . 1 . 3 . . . 3 . Swarmer 20 | . . . 9 4 . . 3 4 Grunt 21 | . 4 . 8 3 . . 5 1 Brawler 1 | . . . 1 . . . . . Duelist 1 | . . . . . . . 1 . Protector 1 | . . . . . . . . 1 Sentry 11 | . . . 4 . . . 6 1 Hunter 2 | . . . . . . 1 1 . Behemoth 1 | . . . . . . . . 1 Assembled 3 | . . 3 . . . . . . Best Kill Streak 8 | 4 2 2 5 4 . 1 8 5 Combat Bots Only 5 | . 2 2 4 4 . 1 3 5 Max Kills in Single Turn 3 | 2 1 1 3 3 . 1 2 2 Gunslinging 1 | . . . . . . . 1 1 Exploded 3 | . . . 3 3 . . . . Melee . | . . . . . . . . . Uniques/NPCs Destroyed . | . . . . . . . . . Combat | -11 -10 -10 -9 -9 -9 -8 -8 -8 -------- Run | Scr Mat Min Mat Min Exi Min Mat Gar Damage Taken 4483 | . 75 64 1154 207 . 217 667 2099 Core 700 | . 12 . 97 6 . 33 109 443 Absorbed by Shields . | . . . . . . . . . Core Remaining (%) 87 | 100 . 95 . . . 66 . . Volleys Fired 210 | 3 27 5 58 17 . 9 56 35 Largest 3 | 2 2 2 2 2 . 2 3 3 Hottest 113 | 60 100 63 100 53 . 46 113 104 Shots Fired 479 | 6 44 10 112 34 . 18 168 87 Gun 455 | 6 42 10 101 29 . 18 168 81 Cannon . | . . . . . . . . . Launcher 18 | . . . 7 5 . . . 6 Special 6 | . 2 . 4 . . . . . Kinetic 352 | 3 25 5 95 29 . 18 116 61 Thermal 6 | . 2 . 4 . . . . . Explosive 12 | . . . 7 5 . . . . Electromagnetic 109 | 3 17 5 6 . . . 52 26 Robot Hit Streak 21 | 4 8 7 18 6 . 7 18 21 Robot Miss Streak 3 | . 3 1 3 2 . 1 3 2 Penetration Max . | . . . . . . . . . Secondary Targets 4 | . . . . . . . 2 2 Max Gunslinging Chain 2 | . . . . . . . 1 2 Shots Hit Robots 325 | 4 27 7 69 21 . 13 113 71 Core Hits 145 | 5 14 7 37 12 . 3 44 23 Critical Hits . | . . . . . . . . . Critical Kills . | . . . . . . . . . Critical Parts Destroyed . | . . . . . . . . . Melee Attacks . | . . . . . . . . . Impact . | . . . . . . . . . Slashing . | . . . . . . . . . Piercing . | . . . . . . . . . Sneak Attacks . | . . . . . . . . . Combat Hostiles . | . . . . . . . . . Follow-up Attacks . | . . . . . . . . . Damage Inflicted 6141 | 63 425 90 1814 627 . 130 1794 1198 Guns 4679 | 63 415 90 1016 206 . 130 1776 983 Cannons . | . . . . . . . . . Explosions 1434 | . . . 798 421 . . . 215 Melee . | . . . . . . . . . Ramming 28 | . 10 . . . . . 18 . Kinetic 3506 | 25 242 32 975 206 . 130 1118 778 Thermal . | . . . . . . . . . Explosive 1219 | . . . 798 421 . . . . Electromagnetic 1388 | 38 173 58 41 . . . 658 420 Impact . | . . . . . . . . . Slashing . | . . . . . . . . . Piercing . | . . . . . . . . . Highest Corruption . | . . . . . . . . . Average Corruption . | . . . . . . . . . Corruption Purged . | . . . . . . . . . Overload Shots . | . . . . . . . . . Overflow Damage 44 | . . . 23 21 . . . . Projectiles . | . . . . . . . . . Explosions 44 | . . . 23 21 . . . . Melee . | . . . . . . . . . Knockbacks . | . . . . . . . . . Impact . | . . . . . . . . . Kinetic . | . . . . . . . . . Secondary . | . . . . . . . . . Self-Inflicted Damage 89 | . . . 63 12 . . . 14 Shots 4 | . . . 2 1 . . . 1 Rammed 4 | . 1 . . . . . 3 . Targets Rammed 4 | . 1 . . . . . 3 . Kicked . | . . . . . . . . . Crushed . | . . . . . . . . . Highest Temperature 307 | . 33 6 20 8 . . 307 261 Average Temperature 59 | . 8 3 5 3 . . 78 96 Received Heat Transfer 1413 | . 42 . 378 81 . . 252 660 Effects 1 | . . . . . . . . 1 Energy Bleed 1 | . . . . . . . . 1 Siege Activations . | . . . . . . . . . Robots Corrupted . | . . . . . . . . . Combat Hostiles . | . . . . . . . . . Parts Fried 2 | . . . . . . . 1 1 Impact Corruptions . | . . . . . . . . . Robots Melted . | . . . . . . . . . Combat Hostiles . | . . . . . . . . . Parts Melted . | . . . . . . . . . Heat Transferred . | . . . . . . . . . Parts Sabotaged . | . . . . . . . . . Parts Stolen . | . . . . . . . . . Parts Stripped . | . . . . . . . . . Power Chain Reactions . | . . . . . . . . . Missiles Intercepted . | . . . . . . . . . Alert | -11 -10 -10 -9 -9 -9 -8 -8 -8 ------- Run | Scr Mat Min Mat Min Exi Min Mat Gar Peak Influence 572 | 20 129 62 403 270 . 30 572 380 Initial 290 | . 13 32 24 125 . . 11 290 Average 157 | 8 68 53 233 171 . 19 200 280 Maximum Alert Level 2 | . . . 2 1 . . 2 1 Low Security (%) 65 | 100 100 100 39 62 . 100 58 . Level 1 25 | . . . 52 37 . . 16 100 Level 2 8 | . . . 7 . . . 24 . Level 3 . | . . . . . . . . . Level 4 . | . . . . . . . . . Level 5 . | . . . . . . . . . High Security . | . . . . . . . . . Max Security . | . . . . . . . . . Squads Dispatched 3 | . . . 2 . . . 1 . Investigation 1 | . . . 1 . . . . . Extermination . | . . . . . . . . . Reinforcement 2 | . . . 1 . . . 1 . Assault . | . . . . . . . . . Garrison . | . . . . . . . . . Intercept . | . . . . . . . . . Construction Impeded . | . . . . . . . . . Haulers Reinforced . | . . . . . . . . . Stealth | -11 -10 -10 -9 -9 -9 -8 -8 -8 --------- Run | Scr Mat Min Mat Min Exi Min Mat Gar Distress Signals 3 | . . . . . . . 3 . Communications Jammed . | . . . . . . . . . Distress Signals . | . . . . . . . . . Times Spotted 94 | . 10 7 28 7 . 1 27 14 Peak Tracking Total 6 | . 3 1 5 4 . 1 5 6 Tactical Retreats 10 | . . . 2 . . . 5 3 Traps | -11 -10 -10 -9 -9 -9 -8 -8 -8 ------- Run | Scr Mat Min Mat Min Exi Min Mat Gar Traps Triggered 4 | . . . 1 . . . . 3 Indirectly . | . . . . . . . . . Trap Hack Attempts . | . . . . . . . . . Triggered . | . . . . . . . . . Disarmed . | . . . . . . . . . Reprogrammed . | . . . . . . . . . Reused . | . . . . . . . . . Traps Extracted . | . . . . . . . . . Installed . | . . . . . . . . . Triggered . | . . . . . . . . . Machines | -11 -10 -10 -9 -9 -9 -8 -8 -8 ---------- Run | Scr Mat Min Mat Min Exi Min Mat Gar Machines Disabled . | . . . . . . . . . Max in Single Turn . | . . . . . . . . . Machines Sabotaged . | . . . . . . . . . Garrisons Compromised . | . . . . . . . . . Overloaded Fab Kills . | . . . . . . . . . Fab Network Shutdowns . | . . . . . . . . . Hacking | -11 -10 -10 -9 -9 -9 -8 -8 -8 --------- Run | Scr Mat Min Mat Min Exi Min Mat Gar Machines Accessed 20 | . 6 . 5 . 1 1 7 . Terminals 18 | . 6 . 5 . . 1 6 . Fabricators . | . . . . . . . . . Repair Stations . | . . . . . . . . . Recycling Units . | . . . . . . . . . Scanalyzers . | . . . . . . . . . Garrison Access 1 | . . . . . . . 1 . Total Hacks 59 | . 18 . 14 . 1 2 24 . Successful 33 | . 10 . 9 . 1 . 13 . Failed 25 | . 8 . 5 . . 2 10 . Catastrophic 3 | . . . 1 . . 2 . . Database Lockouts 1 | . . . . . . . 1 . Manual 48 | . 15 . 9 . 2 2 20 . Terminals 57 | . 18 . 14 . . 2 23 . Fabricators . | . . . . . . . . . Repair Stations . | . . . . . . . . . Recycling Units . | . . . . . . . . . Scanalyzers . | . . . . . . . . . Garrison Access 1 | . . . . . . . 1 . Terminal Hacks 18 | . 4 . 6 . 1 . 7 . Part Schematic 2 | . 1 . . . . . 1 . Robot Analysis 3 | . . . 1 . . . 2 . Prototype ID Bank 1 | . . . . . . . 1 . Branch Access Points 2 | . 1 . 1 . . . . . Machine Index 1 | . . . . . . . 1 . Terminal Index 3 | . 1 . 1 . . . 1 . Alert Level 1 | . . . 1 . . . . . Unreport Threat 1 | . . . 1 . . . . . Zone Layout 3 | . 1 . 1 . . . 1 . EX-Prototype ID Bank 1 | . . . . . 1 . . . Fabricator Hacks . | . . . . . . . . . Repair Station Hacks . | . . . . . . . . . Recycling Unit Hacks . | . . . . . . . . . Scanalyzer . | . . . . . . . . . Garrison Access Hacks 1 | . . . . . . . 1 . Unlock Access 1 | . . . . . . . 1 . Unauthorized Hacks 14 | . 6 . 3 . . . 5 . Terminals 14 | . 6 . 3 . . . 5 . Track 4 | . 2 . . . . . 2 . Assimilate 1 | . 1 . . . . . . . Botnet 6 | . 2 . 2 . . . 2 . Operators 3 | . 1 . 1 . . . 1 . Fabricators . | . . . . . . . . . Repair Stations . | . . . . . . . . . Recycling Units . | . . . . . . . . . Scanalyzers . | . . . . . . . . . Garrison Access . | . . . . . . . . . Data Cores Recovered 1 | . 1 . . . . . . . Used . | . . . . . . . . . Hacking Detections 18 | . 6 . 5 . . 1 6 . Full Trace Events . | . . . . . . . . . Feedback Events . | . . . . . . . . . Feedback Blocked . | . . . . . . . . . Robot Schematics Acquired . | . . . . . . . . . Robots Built . | . . . . . . . . . Matter . | . . . . . . . . . Time . | . . . . . . . . . Total Robot Build Rating . | . . . . . . . . . Part Schematics Acquired 2 | . 1 . . . . . 1 . Parts Built . | . . . . . . . . . Matter . | . . . . . . . . . Time . | . . . . . . . . . Total Part Build Rating . | . . . . . . . . . Parts Repaired . | . . . . . . . . . Time . | . . . . . . . . . Parts Recycled . | . . . . . . . . . Recycled Matter . | . . . . . . . . . Retrieved Matter . | . . . . . . . . . Retrieved Components . | . . . . . . . . . Parts Scanalyzed . | . . . . . . . . . Part Schematics Acquired . | . . . . . . . . . Parts Damaged . | . . . . . . . . . Bothacking | -11 -10 -10 -9 -9 -9 -8 -8 -8 ------------ Run | Scr Mat Min Mat Min Exi Min Mat Gar Used RIF Installer . | . . . . . . . . . Robots Hacked . | . . . . . . . . . Non-combat . | . . . . . . . . . Combat . | . . . . . . . . . Robot Hacks Applied . | . . . . . . . . . Relay Couplers Released . | . . . . . . . . . Robots Rewired . | . . . . . . . . . Allies Hacked . | . . . . . . . . . Hacks Repelled . | . . . . . . . . . Allies | -11 -10 -10 -9 -9 -9 -8 -8 -8 -------- Run | Scr Mat Min Mat Min Exi Min Mat Gar Total Allies 2 | . 1 1 . . . . . . Largest Group 2 | . 1 2 2 . . . . . Highest-Rated Group 41 | . 10 41 41 . . . . . Highest-Rated Ally 31 | . 10 31 31 . . . . . Total Orders 2 | . 2 . . . . . . . STAY 1 | . 1 . . . . . . . FOLLOW 1 | . 1 . . . . . . . Ally Attacks 12 | . . 9 3 . . . . . Total Damage 148 | . . 105 43 . . . . . Kills 5 | . . 5 . . . . . . Allies Corrupted . | . . . . . . . . . Allies Melted . | . . . . . . . . . Intel | -11 -10 -10 -9 -9 -9 -8 -8 -8 ------- Run | Scr Mat Min Mat Min Exi Min Mat Gar Robot Analysis Total 3 | . . . 1 . . . 2 . Derelict Logs Recovered . | . . . . . . . . . Drone Launches . | . . . . . . . . . Drone Recoveries . | . . . . . . . . . Exploration | -11 -10 -10 -9 -9 -9 -8 -8 -8 ------------- Run | Scr Mat Min Mat Min Exi Min Mat Gar Turns Passed 3790 | 97 618 200 727 330 401 262 952 203 Spaces Moved 1840 | 51 321 115 297 169 250 146 437 54 Core 8 | 8 . . . . . . . . Treads 1832 | 43 321 115 297 169 250 146 437 54 Legs . | . . . . . . . . . Wheels . | . . . . . . . . . Hover . | . . . . . . . . . Flight . | . . . . . . . . . Fastest Speed 50 | 50 160 160 160 160 160 160 160 160 Average Speed 159 | 142 160 160 160 160 160 160 160 161 Slowest Speed 200 | 160 180 160 160 160 160 160 160 200 Overloaded Moves . | . . . . . . . . . Propulsion Burnouts . | . . . . . . . . . Robots Hopped . | . . . . . . . . . Cave-ins Triggered . | . . . . . . . . . Exploration Rate (%) 38 | 4 59 42 36 42 67 38 47 14 Regions Visited 8 Branch Regions 4 Pre-discovered Areas . | . . . . . . . . . Known Exits Taken 3 | . 1 . 1 . . . 1 . Unknown Exits Taken 5 | 1 . 1 . 1 1 1 . . Scrap Searched 2 | . . 1 . 1 . . . . Spaces Dug 6 | . 2 . 4 . . . . . Terrain Destroyed 96 | . 2 . 48 46 . . . . Melee . | . . . . . . . . . Projectile 6 | . 2 . 4 . . . . . AOE 90 | . . . 44 46 . . . . Terrain Rammed . | . . . . . . . . . Walls Destroyed . | . . . . . . . . . Machines Disabled . | . . . . . . . . . Actions | -11 -10 -10 -9 -9 -9 -8 -8 -8 --------- Run | Scr Mat Min Mat Min Exi Min Mat Gar Total 2277 | 67 374 123 419 192 251 157 584 110 Wait 36 | . 2 . 11 . . . 23 . Move 1832 | 50 320 114 296 168 249 145 436 54 Hop . | . . . . . . . . . Pick Up 50 | 7 10 2 8 . 2 1 14 6 Fast Attach 10 | 4 . . 2 . . . 2 2 Attach 27 | 3 . . 5 2 . 2 5 10 Detach 2 | . . . 1 . . . . 1 Swap 66 | . 9 . 28 5 . . 22 2 Drop 40 | . 5 2 10 . . . 23 . Fire 210 | 3 27 5 58 17 . 9 56 35 Melee . | . . . . . . . . . Ram . | . . . . . . . . . Kick . | . . . . . . . . . Crush 4 | . 1 . . . . . 3 . Escape Stasis . | . . . . . . . . . Rewire . | . . . . . . . . . Trap . | . . . . . . . . . Miscellaneous . | . . . . . . . . . Route ------- -11/Scrapyard -10/Materials (discovered 4 exits: *Mat x2 / *Min x2) -10/Mines -9/Materials (discovered 3 exits: *Mat / *Min x2) -9/Mines (discovered 3 exits: *Mat / *Exi / [*Zio]) -9/Exiles -8/Mines -8/Materials (discovered 3 exits: [*Fac x2] / Gar) -8/Garrison History --------- Turn | Location | Event 15 | -11/Scrapyard | Discovered new exit (range 16) 98 | -11/Scrapyard | Entered Materials 301 | -10/Materials | Build established: Mutant 358 | -10/Materials | Discovered new exit (range 14) 510 | -10/Materials | Discovered new exit (range 12) 515 | -10/Materials | Identified exit to Mines 716 | -10/Materials | Entered Mines 716 | -10/Mines | Accompanied by 1 ally 717 | -10/Mines | Met a Derelict testing a Signal Generator 719 | -10/Mines | Assembled infested the area 905 | -10/Mines | Discovered new exit (range 7) 916 | -10/Mines | Entered Materials 916 | -9/Materials | Accompanied by 2 allies 916 | -9/Materials | Evolved 2 slots: Propulsion x1, Utility x1 1091 | -9/Materials | Identified exit to Mines 1369 | -9/Materials | Discovered new exit (range 3) 1521 | -9/Materials | Build established: Scavenger-Mutant 1643 | -9/Materials | Entered Mines 1650 | -9/Mines | Met a Derelict bent on vengeance 1721 | -9/Mines | A Derelict revealed a hidden shortcut to a safe place 1842 | -9/Mines | Discovered new exit (range 6) 1966 | -9/Mines | Deemed a non-threat by the Exiles lab entrance 1966 | -9/Mines | Discovered new exit (range 5) 1973 | -9/Mines | Entered Exiles 2012 | -9/Exiles | Met 8R-AWN 2041 | -9/Exiles | Met EX-HEX 2084 | -9/Exiles | Met EX-BIN 2101 | -9/Exiles | Aligned with FarCom system 2103 | -9/Exiles | Given EX-Vault access code 2140 | -9/Exiles | Opened EX-Vault 2151 | -9/Exiles | Found Lightpack 2.0 2184 | -9/Exiles | Warned to stay clear of 0b10 Research branches 2227 | -9/Exiles | Met EX-DEC 2355 | -9/Exiles | Discovered new exit (range 14) 2374 | -9/Exiles | Left Exiles lab with Lightpack 2.0 2374 | -9/Exiles | Entered Mines 2614 | -8/Mines | Discovered new exit (range 10) 2636 | -8/Mines | Entered Materials 2636 | -8/Materials | Evolved 2 slots: Utility x1, Weapon x1 2677 | -8/Materials | Build established: Scavenger-Skirmisher 3107 | -8/Materials | Discovered new exit (range 14) 3539 | -8/Materials | Discovered new exit (range 11) 3550 | -8/Materials | Central database locked down 3585 | -8/Materials | Identified exit to Garrison 3588 | -8/Materials | Entered Garrison 3609 | -8/Garrison | Spotted B-75 Beast 3675 | -8/Garrison | Core integrity fell below 50% 3693 | -8/Garrison | Lost 11 parts (1p3n2u5w) 3695 | -8/Garrison | Core integrity fell below 20% 3696 | -8/Garrison | Destroyed B-75 Beast 3769 | -8/Garrison | Triggered checkpoint 3791 | -8/Garrison | Destroyed by D-53 Grenadier with Mini Grenade Launcher Last Messages --------------- 03696_ B-75 Beast destroyed. 03702_ Acquired Imp. Medium Treads. 03709_ Acquired Lgt. Treads. 03715_ Acquired 56 matter. 03719_ Acquired Hvy. Machine Gun. 03723_ Acquired Rnf. Deuterium Engine. 03724_ Acquired 58 matter. 03726_ Acquired 10 matter. 03733_ Imp. Heat Sink fried. 03733_ G-47 Trooper destroyed. 03736_ Acquired 8 matter. 03758_ S-10 Pest destroyed. 03761_ Switching to secondary target: S-10 Pest. 03761_ S-10 Pest destroyed. 03761_ Switching to secondary target: S-10 Pest. 03769_ Beams of light sweep through the air. An alarm sounds. 03773_ S-10 Pest destroyed. 03778_ I-25 Savior destroyed. 03786_ Acquired 3 matter. 03787_ Autogun destroyed. Map ----- +----------------------------------------------------+ | ?????????????????????????????????????????????????? | | ?????????????????????????????????????????????????? | | ?????????????????????????????????????????????????? | | ?????????????????????????????????????????????????? | | ?????????????????????????????????????????????????? | | ?????????????????????????????????????????????????? | | ????????????????????????#???????? ???????????????? | | ??????????????????????????????#?#???#??#?????????? | | ???????????????????? ????? ?? ??? ??????????????? | | ??????????????????#?#???#??????????#?????????????? | | ??????????????????? ?? ??#??? ???#??????????????? | | ?????????????????????#? ????#?????? ???#?? #?????? | | ???????????????????Y?# ?#???##???????#?? ???????? | | ????????????????"???## ????#????#????#?# ???????? | | ?????????????? ??? ????????????? ???? ? ????? | | ?????????????? ??? ? ??????????????# ? ??? | | ????????????? ? ? ? ?? ??? ? ?????#???? | | ??????????????## ?# ??#???###??#??????###????? | | ????????????? ## ## ?##??#??#?###???#?#???#""" | | ?????????s????? ?"???????#???#?##?##??#?#? | | ?????????s?????? ? ?#?##????#?##?#?####?#? | | ?????????s??? ???? ? ####?#?????#####??##??? | | ?????????s?????????? ? g ##??##?##?#?#?##?#?? | | ??????????#????#? ??## #### ##?#??#???#??####??# | | ??????????? ? ?# ## d #######?###??#?#### | | ?????????? =![ @ #??#???#??#?# | | ?????????? = % #??#?#######? | | ??????????# ** ## ##?##?##?#?#? | | ?????????Y?# ## ## # ##### #???##?##???# | | ???????????#???# ???## #? ## #???# #??????#?#??? | | ???????????????##??#### ??### ##??# #####?#????#? | | ???????????? ???????### ????# ##### #?#??####??#? | | ???????????? ?#?????? ?? ? =+% #? ?#??##??? | | ??????????????#?#?#?#?# ##??###???# #?#???#?#???? | | ????????????? ??# ??###???##?###??# ###? ??##?##? | | ???????????????? ?##???????####### !#??? #?###### | | ???????????????##?????????#??# !![!######### # | | ???????????????????#??# #??#?# ###"% | | ????????????????######?? ?? ??#### ] | | ???????????????????#?????????# ##?#! | | ???????????????????#?#?????#?? ?### ######### # | | ???????????????????#?#????####?#?## ##?# ???##### | | ??????????????????#?## ???#?## ? " ###???#?#?#?? | | ??????????????????#?##? #?##?# ? " ?? ??????### | | ????????????????????#??#?##??????## "#?#???##?#??? | | ???????????????????????##???#????## #?##???????#? | | ?????????????????????#??#??#?# ???# #????#?#??#?? | | ??????????????????????????#?#?????#####???###????? | | ????????????????????????????#? ?#?#?#?#??????????# | | ????????????????????#??????##??????????##???#????? | +----------------------------------------------------+ Best States ------------- Heat Dissipation 31 Energy Generation 14 Energy Capacity 265 Matter Stores 300 Matter Capacity 300 Sight Range 16 Terrain Scan Range 20 Terrain Scan Density 85 Armor Coverage 150 Weapon Shielding 66 Evasion (%) 40 Recoil Reduction 3 Offensive Hacking 10 Item Schematics ----------------- Hcp. Storage Unit | -10/Materials | Hacked Imp. Utility Shielding | -8/Materials | Hacked Robot Schematics ------------------ None Fabricated ------------ Nothing Alien Tech Used ----------------- None Achievements -------------- None Challenges ------------ None Game ------ Seed GhostXenonFilter Manual? 0 Play Time 00:43:27 Cumulative 254.7 hours Start 2021.09.12 @ 16:21:30 End 2021.09.12 @ 17:09:47 Sessions 1 Manual Loads 0 Difficulty Rogue Special Mode None Game No. 104 Rogue 13 Adventurer 89 Explorer 2 Win Type - Total 14 Types 12/2/0/0/0/0/0/0/0 Lore% 45 Gallery% 74 Achievement% 50 Wizard Run 0 Options --------- ASCII 0 Keyboard 1 Movement Numpad Keybinds 0 Fullscreen 1 Font 36/TerminusFine Map View 76x50 Tactical HUD 1 Map Filters NONE Filters NONE Steam 1 RUN: a0ee98c7-1d79-42fe-a806-6b5987b43639